[Event "*** Titled Tuesday Blitz"]
[Site "Chess.com"]
[Date "2021.02.16"]
[Round "1"]
[White "TC2304"]
[Black "MPGM"]
[Result "0-1"]
[WhiteElo "2318"]
[BlackElo "2618"]
[TimeControl "180+1"]
[EndTime "10:09:20 PST"]
[Termination "MPGM won by checkmate"]

1. d4 {[%clk 0:03:00.9]} 1... d5 {[%clk 0:02:58.2]} 2. c4 {[%clk 0:03:00.7]}
2... e6 {[%clk 0:02:56.3]} 3. Nc3 {[%clk 0:03:00.6]} 3... c5 {[%clk 0:02:54.4]}
4. cxd5 {[%clk 0:03:00]} 4... exd5 {[%clk 0:02:55.3]} 5. Nf3 {[%clk 0:03:00.1]}
5... Nf6 {[%clk 0:02:53.9]} 6. g3 {[%clk 0:03:00.7]} 6... Nc6 {[%clk 0:02:52.9]}
7. Bg2 {[%clk 0:03:01.4]} 7... cxd4 {[%clk 0:02:53.5]} 8. Nxd4 {[%clk
0:03:00.7]} 8... Bc5 {[%clk 0:02:54.2]} 9. Be3 {[%clk 0:02:47.7]} 9... Qb6
{[%clk 0:02:52.1]} 10. Nxc6 {[%clk 0:02:33.5]} 10... Bxe3 {[%clk 0:02:38.8]} 11.
Nxd5 {[%clk 0:02:10.3]} 11... Bxf2+ {[%clk 0:02:33.4]} 12. Kf1 {[%clk
0:02:08.6]} 12... Nxd5 {[%clk 0:02:33.7]} 13. Qxd5 {[%clk 0:02:04.3]} 13... Be6
{[%clk 0:01:46.6]} 14. Qf3 {[%clk 0:01:22.8]} 14... Bc5 {[%clk 0:01:29.4]} 15.
b4 {[%clk 0:01:05.8]} 15... Be3 {[%clk 0:01:00.7]} 16. Ne5 {[%clk 0:00:47.2]}
16... Bd4 {[%clk 0:01:00.4]} 17. Qxb7 {[%clk 0:00:21.4]} 17... Qxb7 {[%clk
0:00:54.1]} 18. Bxb7 {[%clk 0:00:20.7]} 18... Bxa1 {[%clk 0:00:48.4]} 19. Bxa8
{[%clk 0:00:17.9]} 19... Bxe5 {[%clk 0:00:47.9]} 20. Kg2 {[%clk 0:00:16.6]}
20... Ke7 {[%clk 0:00:47.7]} 21. Bf3 {[%clk 0:00:16.8]} 21... Bxa2 {[%clk
0:00:45.6]} 22. Rc1 {[%clk 0:00:13.3]} 22... Rb8 {[%clk 0:00:43.4]} 23. Rc5
{[%clk 0:00:13.3]} 23... Bd6 {[%clk 0:00:34.2]} 24. Ra5 {[%clk 0:00:13.2]} 24...
Rxb4 {[%clk 0:00:32.4]} 25. Rxa2 {[%clk 0:00:12.6]} 25... Bc5 {[%clk 0:00:31.2]}
26. Ra5 {[%clk 0:00:08.2]} 26... Bb6 {[%clk 0:00:30.1]} 27. Re5+ {[%clk
0:00:07.6]} 27... Kf6 {[%clk 0:00:30.1]} 28. Rd5 {[%clk 0:00:07.3]} 28... g6
{[%clk 0:00:29.1]} 29. Rd3 {[%clk 0:00:07.3]} 29... Ke7 {[%clk 0:00:26.7]} 30.
Bd5 {[%clk 0:00:07.3]} 30... f5 {[%clk 0:00:26.1]} 31. Rb3 {[%clk 0:00:07.3]}
31... Rd4 {[%clk 0:00:24.5]} 32. Bf3 {[%clk 0:00:07.6]} 32... h5 {[%clk
0:00:24]} 33. Rd3 {[%clk 0:00:08]} 33... Rb4 {[%clk 0:00:23.6]} 34. Re3+ {[%clk
0:00:08.3]} 34... Kf6 {[%clk 0:00:23.4]} 35. Rd3 {[%clk 0:00:08.2]} 35... Ke5
{[%clk 0:00:21.8]} 36. Rd7 {[%clk 0:00:07.6]} 36... a5 {[%clk 0:00:19.9]} 37.
Rg7 {[%clk 0:00:06.8]} 37... Kf6 {[%clk 0:00:19.8]} 38. Rd7 {[%clk 0:00:06.6]}
38... a4 {[%clk 0:00:19.9]} 39. Rd6+ {[%clk 0:00:06.6]} 39... Kg7 {[%clk
0:00:19.2]} 40. Rd3 {[%clk 0:00:06.5]} 40... Bc5 {[%clk 0:00:16.3]} 41. Bd5
{[%clk 0:00:06]} 41... Rb2 {[%clk 0:00:12.9]} 42. Kf3 {[%clk 0:00:02.5]} 42...
a3 {[%clk 0:00:12.7]} 43. Rd1 {[%clk 0:00:03]} 43... Kf6 {[%clk 0:00:12.5]} 44.
Bc4 {[%clk 0:00:02.6]} 44... Rb4 {[%clk 0:00:11.7]} 45. Bd5 {[%clk 0:00:03]}
45... g5 {[%clk 0:00:10.7]} 46. h3 {[%clk 0:00:02.6]} 46... g4+ {[%clk
0:00:11.5]} 47. hxg4 {[%clk 0:00:03.5]} 47... hxg4+ {[%clk 0:00:12.2]} 48. Kg2
{[%clk 0:00:04]} 48... Rb2 {[%clk 0:00:12.7]} 49. Kf1 {[%clk 0:00:04]} 49... Bd6
{[%clk 0:00:12.3]} 50. Bc4 {[%clk 0:00:04.5]} 50... Bxg3 {[%clk 0:00:12.4]} 51.
Ra1 {[%clk 0:00:03.9]} 51... Bd6 {[%clk 0:00:12.7]} 52. Rd1 {[%clk 0:00:04.3]}
52... Be5 {[%clk 0:00:12.8]} 53. Ra1 {[%clk 0:00:04]} 53... Rc2 {[%clk
0:00:10.5]} 54. Rxa3 {[%clk 0:00:03.9]} 54... Rxc4 {[%clk 0:00:10.4]} 55. Ra6+
{[%clk 0:00:04.6]} 55... Kg5 {[%clk 0:00:10.6]} 56. Kg2 {[%clk 0:00:05.3]} 56...
Re4 {[%clk 0:00:11.1]} 57. Kf2 {[%clk 0:00:05.5]} 57... Bd4+ {[%clk 0:00:11.4]}
58. Kf1 {[%clk 0:00:05.9]} 58... g3 {[%clk 0:00:11.9]} 59. Ra8 {[%clk
0:00:06.4]} 59... g2+ {[%clk 0:00:11.3]} 60. Kxg2 {[%clk 0:00:06.4]} 60... Rxe2+
{[%clk 0:00:12]} 61. Kf3 {[%clk 0:00:07.3]} 61... Rf2+ {[%clk 0:00:11.7]} 62.
Kg3 {[%clk 0:00:08.1]} 62... f4+ {[%clk 0:00:12.3]} 63. Kh3 {[%clk 0:00:07.8]}
63... Rf3+ {[%clk 0:00:12.9]} 64. Kg2 {[%clk 0:00:07.8]} 64... Rg3+ {[%clk
0:00:13.4]} 65. Kh2 {[%clk 0:00:08.1]} 65... Kg4 {[%clk 0:00:13]} 66. Rg8+
{[%clk 0:00:08.3]} 66... Kf3 {[%clk 0:00:13.2]} 67. Ra8 {[%clk 0:00:07.8]} 67...
Rg2+ {[%clk 0:00:12.3]} 68. Kh3 {[%clk 0:00:07.9]} 68... Rg1 {[%clk 0:00:12]}
69. Ra3+ {[%clk 0:00:07.9]} 69... Be3 {[%clk 0:00:12.5]} 70. Ra2 {[%clk
0:00:07.9]} 70... Rg8 {[%clk 0:00:10.6]} 71. Kh4 {[%clk 0:00:06.5]} 71... Rh8+
{[%clk 0:00:10.8]} 72. Kg5 {[%clk 0:00:06.9]} 72... Kg3 {[%clk 0:00:11.4]} 73.
Ra3 {[%clk 0:00:06]} 73... Rc8 {[%clk 0:00:08.2]} 74. Kf5 {[%clk 0:00:06]} 74...
Re8 {[%clk 0:00:07.5]} 75. Ra7 {[%clk 0:00:03.6]} 75... f3 {[%clk 0:00:07]} 76.
Rg7+ {[%clk 0:00:03.7]} 76... Kf2 {[%clk 0:00:07.2]} 77. Rh7 {[%clk 0:00:03.4]}
77... Ke2 {[%clk 0:00:07.5]} 78. Kg4 {[%clk 0:00:03.6]} 78... f2 {[%clk
0:00:08]} 79. Rh2 {[%clk 0:00:03.5]} 79... Ke1 {[%clk 0:00:07.6]} 80. Rh1+
{[%clk 0:00:01.1]} 80... f1=Q {[%clk 0:00:07.6]} 81. Rxf1+ {[%clk 0:00:01.5]}
81... Kxf1 {[%clk 0:00:08.5]} 82. Kf3 {[%clk 0:00:02.2]} 82... Ke1 {[%clk
0:00:07.4]} 83. Kg2 {[%clk 0:00:02.3]} 83... Kd2 {[%clk 0:00:08.3]} 84. Kf3
{[%clk 0:00:03.2]} 84... Kd3 {[%clk 0:00:08.8]} 85. Kg4 {[%clk 0:00:04.1]} 85...
Ke4 {[%clk 0:00:09.6]} 86. Kh3 {[%clk 0:00:04.2]} 86... Rg8 {[%clk 0:00:10.1]}
87. Kh2 {[%clk 0:00:04.4]} 87... Kf3 {[%clk 0:00:10]} 88. Kh1 {[%clk 0:00:05.3]}
88... Rh8# {[%clk 0:00:10.2]} 0-1

[Event "*** Titled Tuesday Blitz"]
[Site "Chess.com"]
[Date "2021.02.16"]
[Round "1"]
[White "Alex-11211"]
[Black "Arseniy_Nesterov"]
[Result "1/2-1/2"]
[WhiteElo "2435"]
[BlackElo "2799"]
[TimeControl "180+1"]
[EndTime "10:09:40 PST"]
[Termination "Game drawn - insufficient material"]

1. e4 {[%clk 0:02:32.2]} 1... e5 {[%clk 0:02:57.4]} 2. Bc4 {[%clk 0:02:31.6]}
2... Nc6 {[%clk 0:02:56.6]} 3. Nc3 {[%clk 0:02:32.1]} 3... Nf6 {[%clk
0:02:56.4]} 4. d3 {[%clk 0:02:32.5]} 4... Na5 {[%clk 0:02:55.8]} 5. Nge2 {[%clk
0:02:32.6]} 5... Nxc4 {[%clk 0:02:55.5]} 6. dxc4 {[%clk 0:02:33.5]} 6... d6
{[%clk 0:02:56.1]} 7. O-O {[%clk 0:02:33.6]} 7... Be7 {[%clk 0:02:56.8]} 8. b3
{[%clk 0:02:33.9]} 8... O-O {[%clk 0:02:56.5]} 9. a4 {[%clk 0:02:33.9]} 9... a5
{[%clk 0:02:55.9]} 10. Ng3 {[%clk 0:02:32.6]} 10... b6 {[%clk 0:02:54]} 11. h3
{[%clk 0:02:27.2]} 11... h6 {[%clk 0:02:53.8]} 12. Qf3 {[%clk 0:02:27.2]} 12...
Kh7 {[%clk 0:02:53.4]} 13. Nf5 {[%clk 0:02:26.1]} 13... Be6 {[%clk 0:02:46.4]}
14. Nd5 {[%clk 0:02:15.8]} 14... Nxd5 {[%clk 0:02:43.9]} 15. cxd5 {[%clk
0:02:11]} 15... Bd7 {[%clk 0:02:39.6]} 16. Qh5 {[%clk 0:01:35.6]} 16... Bg5
{[%clk 0:02:30.9]} 17. Bxg5 {[%clk 0:01:27.3]} 17... Qxg5 {[%clk 0:02:31.8]} 18.
Qxg5 {[%clk 0:01:23.9]} 18... hxg5 {[%clk 0:02:32.7]} 19. Ng3 {[%clk 0:01:15.3]}
19... g6 {[%clk 0:02:32.7]} 20. Rad1 {[%clk 0:01:11.3]} 20... Kg7 {[%clk
0:02:32.6]} 21. Rd3 {[%clk 0:01:11.2]} 21... Rh8 {[%clk 0:02:30]} 22. Rc3 {[%clk
0:01:10.6]} 22... Rac8 {[%clk 0:02:27.7]} 23. f3 {[%clk 0:01:07.9]} 23... f5
{[%clk 0:02:27.1]} 24. Re1 {[%clk 0:00:39.5]} 24... Rh4 {[%clk 0:02:24.4]} 25.
Rc4 {[%clk 0:00:37.6]} 25... Kf6 {[%clk 0:02:16.5]} 26. Rd1 {[%clk 0:00:26.4]}
26... Ke7 {[%clk 0:02:08.9]} 27. Kf2 {[%clk 0:00:23.9]} 27... Rh7 {[%clk
0:01:55.8]} 28. Rc3 {[%clk 0:00:20.4]} 28... g4 {[%clk 0:01:46]} 29. hxg4 {[%clk
0:00:19.2]} 29... fxg4 {[%clk 0:01:45.9]} 30. Rh1 {[%clk 0:00:17.5]} 30... Rxh1
{[%clk 0:01:43.8]} 31. Nxh1 {[%clk 0:00:18.4]} 31... gxf3 {[%clk 0:01:44.5]} 32.
gxf3 {[%clk 0:00:19.1]} 32... Rh8 {[%clk 0:01:40]} 33. Ng3 {[%clk 0:00:15.9]}
33... Kd8 {[%clk 0:01:39.8]} 34. Nf1 {[%clk 0:00:13.8]} 34... g5 {[%clk
0:01:36.6]} 35. Kg3 {[%clk 0:00:12.1]} 35... Rh3+ {[%clk 0:01:35.8]} 36. Kg2
{[%clk 0:00:12.1]} 36... Rh4 {[%clk 0:01:36.4]} 37. Ne3 {[%clk 0:00:11.8]} 37...
Rf4 {[%clk 0:01:23.2]} 38. Kg3 {[%clk 0:00:10.4]} 38... Bc8 {[%clk 0:01:20.4]}
39. Rd3 {[%clk 0:00:10.7]} 39... Ba6 {[%clk 0:01:08.6]} 40. c4 {[%clk 0:00:10]}
40... Bc8 {[%clk 0:01:08.1]} 41. Rd2 {[%clk 0:00:09.8]} 41... Ke7 {[%clk
0:00:58.9]} 42. Rh2 {[%clk 0:00:09.7]} 42... g4 {[%clk 0:00:56.1]} 43. Rh7+
{[%clk 0:00:05.7]} 43... Kf6 {[%clk 0:00:56.1]} 44. fxg4 {[%clk 0:00:02.4]}
44... Rxe4 {[%clk 0:00:55.9]} 45. Rxc7 {[%clk 0:00:01.6]} 45... Rxe3+ {[%clk
0:00:55.3]} 46. Kf2 {[%clk 0:00:02.1]} 46... Rxb3 {[%clk 0:00:55.1]} 47. Rxc8
{[%clk 0:00:02.7]} 47... Kg5 {[%clk 0:00:52.2]} 48. Rc6 {[%clk 0:00:03.6]} 48...
Rb4 {[%clk 0:00:50.5]} 49. Rxd6 {[%clk 0:00:04.1]} 49... Rxc4 {[%clk 0:00:49.6]}
50. Rxb6 {[%clk 0:00:04.7]} 50... Rxa4 {[%clk 0:00:50]} 51. d6 {[%clk
0:00:05.2]} 51... Rd4 {[%clk 0:00:49.9]} 52. Rb5 {[%clk 0:00:05.3]} 52... Kf4
{[%clk 0:00:49.6]} 53. Rxa5 {[%clk 0:00:03.8]} 53... Rd2+ {[%clk 0:00:49.7]} 54.
Ke1 {[%clk 0:00:03.9]} 54... Rxd6 {[%clk 0:00:50.4]} 55. g5 {[%clk 0:00:04.2]}
55... Rg6 {[%clk 0:00:47.7]} 56. Ke2 {[%clk 0:00:04.7]} 56... Rxg5 {[%clk
0:00:47.3]} 57. Ra4+ {[%clk 0:00:04.9]} 57... e4 {[%clk 0:00:47.7]} 58. Ra3
{[%clk 0:00:05.2]} 58... Rg2+ {[%clk 0:00:48.3]} 59. Kf1 {[%clk 0:00:05.3]}
59... Rb2 {[%clk 0:00:49.2]} 60. Ke1 {[%clk 0:00:05.7]} 60... Ke5 {[%clk
0:00:48.9]} 61. Kf1 {[%clk 0:00:05.9]} 61... Kf4 {[%clk 0:00:49]} 62. Ke1 {[%clk
0:00:06.3]} 62... Rc2 {[%clk 0:00:49.1]} 63. Kd1 {[%clk 0:00:06.3]} 63... Rg2
{[%clk 0:00:49]} 64. Ke1 {[%clk 0:00:06.7]} 64... Rh2 {[%clk 0:00:48.6]} 65. Kf1
{[%clk 0:00:07.1]} 65... Rd2 {[%clk 0:00:48.6]} 66. Ke1 {[%clk 0:00:07.6]} 66...
Rb2 {[%clk 0:00:48.9]} 67. Kd1 {[%clk 0:00:08.2]} 67... Rf2 {[%clk 0:00:49]} 68.
Ke1 {[%clk 0:00:08.7]} 68... Rf3 {[%clk 0:00:49.6]} 69. Ra7 {[%clk 0:00:08.1]}
69... Rb3 {[%clk 0:00:46]} 70. Rh7 {[%clk 0:00:06.4]} 70... Rc3 {[%clk
0:00:22.3]} 71. Rh8 {[%clk 0:00:05.6]} 71... Rd3 {[%clk 0:00:20.3]} 72. Ke2
{[%clk 0:00:05.7]} 72... Re3+ {[%clk 0:00:20.5]} 73. Kf2 {[%clk 0:00:05.8]}
73... Rf3+ {[%clk 0:00:20.5]} 74. Ke2 {[%clk 0:00:06.3]} 74... Re3+ {[%clk
0:00:17.2]} 75. Kf2 {[%clk 0:00:06.6]} 75... Rd3 {[%clk 0:00:17.2]} 76. Rf8+
{[%clk 0:00:05.9]} 76... Ke5 {[%clk 0:00:17.6]} 77. Re8+ {[%clk 0:00:06.2]}
77... Kd4 {[%clk 0:00:18.2]} 78. Ke2 {[%clk 0:00:04.4]} 78... Re3+ {[%clk
0:00:17.7]} 79. Kd2 {[%clk 0:00:04.1]} 79... Rd3+ {[%clk 0:00:17.9]} 80. Ke2
{[%clk 0:00:04.7]} 80... Rf3 {[%clk 0:00:16.3]} 81. Rd8+ {[%clk 0:00:04.3]}
81... Ke5 {[%clk 0:00:16.7]} 82. Re8+ {[%clk 0:00:04.6]} 82... Kf5 {[%clk
0:00:16.4]} 83. Rf8+ {[%clk 0:00:04.9]} 83... Kg4 {[%clk 0:00:17]} 84. Rg8+
{[%clk 0:00:04.4]} 84... Kf4 {[%clk 0:00:16.6]} 85. Rf8+ {[%clk 0:00:04.7]}
85... Kg3 {[%clk 0:00:16.6]} 86. Rg8+ {[%clk 0:00:05.2]} 86... Kh2 {[%clk
0:00:15.3]} 87. Rh8+ {[%clk 0:00:05.4]} 87... Kg2 {[%clk 0:00:14.8]} 88. Rg8+
{[%clk 0:00:05.7]} 88... Kh3 {[%clk 0:00:14.7]} 89. Rh8+ {[%clk 0:00:06]} 89...
Kg4 {[%clk 0:00:14.5]} 90. Rg8+ {[%clk 0:00:06.9]} 90... Kh5 {[%clk 0:00:12.9]}
91. Rh8+ {[%clk 0:00:06.5]} 91... Kg5 {[%clk 0:00:12.9]} 92. Rg8+ {[%clk
0:00:06.7]} 92... Kh6 {[%clk 0:00:11.7]} 93. Re8 {[%clk 0:00:06.2]} 93... Rf4
{[%clk 0:00:12]} 94. Ke3 {[%clk 0:00:06.5]} 94... Rh4 {[%clk 0:00:10.8]} 95.
Rxe4 {[%clk 0:00:06.5]} 95... Rxe4+ {[%clk 0:00:11.7]} 96. Kxe4 {[%clk
0:00:07.4]} 1/2-1/2

[Event "*** Titled Tuesday Blitz"]
[Site "Chess.com"]
[Date "2021.02.16"]
[Round "1"]
[White "Kaua18"]
[Black "GianmarcoVaR"]
[Result "1-0"]
[WhiteElo "2372"]
[BlackElo "2645"]
[TimeControl "180+1"]
[EndTime "10:09:45 PST"]
[Termination "Kaua18 won by resignation"]

1. e4 {[%clk 0:03:00.9]} 1... c6 {[%clk 0:02:44.2]} 2. d4 {[%clk 0:03:00.1]}
2... d5 {[%clk 0:02:44.2]} 3. Nc3 {[%clk 0:03:01]} 3... dxe4 {[%clk 0:02:40.5]}
4. Nxe4 {[%clk 0:02:55.2]} 4... Bf5 {[%clk 0:02:40.2]} 5. Ng3 {[%clk 0:02:50.3]}
5... Bg6 {[%clk 0:02:35.9]} 6. Nf3 {[%clk 0:02:51.2]} 6... Nd7 {[%clk
0:02:35.3]} 7. h4 {[%clk 0:02:49.1]} 7... h6 {[%clk 0:02:35.6]} 8. h5 {[%clk
0:02:46.1]} 8... Bh7 {[%clk 0:02:36]} 9. Bd3 {[%clk 0:02:47]} 9... Bxd3 {[%clk
0:02:36.1]} 10. Qxd3 {[%clk 0:02:47.9]} 10... e6 {[%clk 0:02:36.2]} 11. Bd2
{[%clk 0:02:47.3]} 11... Ngf6 {[%clk 0:02:35.6]} 12. O-O-O {[%clk 0:02:47.1]}
12... Be7 {[%clk 0:02:36.1]} 13. Ne4 {[%clk 0:02:45.3]} 13... Nxe4 {[%clk
0:02:36]} 14. Qxe4 {[%clk 0:02:46.2]} 14... Nf6 {[%clk 0:02:36.9]} 15. Qe2
{[%clk 0:02:44.9]} 15... Qd5 {[%clk 0:02:37.2]} 16. Kb1 {[%clk 0:02:43.7]} 16...
Qe4 {[%clk 0:02:36.1]} 17. Be3 {[%clk 0:02:43.9]} 17... Rd8 {[%clk 0:02:06.4]}
18. Ne5 {[%clk 0:02:16.7]} 18... Nd5 {[%clk 0:01:53.5]} 19. Rh3 {[%clk
0:01:50.6]} 19... Bg5 {[%clk 0:01:22.8]} 20. Qf3 {[%clk 0:01:21.1]} 20... Qxf3
{[%clk 0:01:07.6]} 21. Rxf3 {[%clk 0:01:11.8]} 21... Nxe3 {[%clk 0:00:41.1]} 22.
fxe3 {[%clk 0:01:12.7]} 22... O-O {[%clk 0:00:38.2]} 23. Rdf1 {[%clk 0:01:06.9]}
23... f5 {[%clk 0:00:32.9]} 24. Ng6 {[%clk 0:00:57.7]} 24... Rfe8 {[%clk
0:00:32.7]} 25. c3 {[%clk 0:00:50.9]} 25... Bf6 {[%clk 0:00:26.3]} 26. Kc2
{[%clk 0:00:47.4]} 26... b6 {[%clk 0:00:25.1]} 27. Rg1 {[%clk 0:00:40.3]} 27...
c5 {[%clk 0:00:18.7]} 28. g4 {[%clk 0:00:40.5]} 28... fxg4 {[%clk 0:00:17.9]}
29. Rxg4 {[%clk 0:00:41.4]} 29... Rd5 {[%clk 0:00:18.3]} 30. Nf4 {[%clk
0:00:19.3]} 30... Rf5 {[%clk 0:00:18.3]} 31. e4 {[%clk 0:00:17.8]} 31... Rg5
{[%clk 0:00:18.2]} 32. Rxg5 {[%clk 0:00:12.4]} 32... hxg5 {[%clk 0:00:18.6]} 33.
Ng6 {[%clk 0:00:12.1]} 33... cxd4 {[%clk 0:00:18.4]} 34. e5 {[%clk 0:00:11.8]}
34... g4 {[%clk 0:00:05.4]} 35. Rg3 {[%clk 0:00:12.3]} 35... Bg5 {[%clk
0:00:05]} 36. Rxg4 {[%clk 0:00:12.8]} 36... Be3 {[%clk 0:00:04.7]} 37. cxd4
{[%clk 0:00:13.3]} 37... Kh7 {[%clk 0:00:04.3]} 38. Kd3 {[%clk 0:00:13.3]} 38...
Bc1 {[%clk 0:00:04.5]} 39. Rg2 {[%clk 0:00:12.7]} 39... Kh6 {[%clk 0:00:04.7]}
40. Rh2 {[%clk 0:00:13.2]} 40... Rc8 {[%clk 0:00:04]} 41. b3 {[%clk 0:00:12.5]}
41... Rc7 {[%clk 0:00:03.9]} 42. Ke4 {[%clk 0:00:12.8]} 42... Bg5 {[%clk
0:00:04]} 43. Nf4 {[%clk 0:00:09.8]} 43... Bxf4 {[%clk 0:00:03.6]} 44. Kxf4
{[%clk 0:00:10.7]} 44... Rc1 {[%clk 0:00:03.9]} 45. Ke4 {[%clk 0:00:10.9]} 45...
Re1+ {[%clk 0:00:04.2]} 46. Kd3 {[%clk 0:00:11.4]} 46... Rd1+ {[%clk 0:00:04.3]}
47. Kc4 {[%clk 0:00:11.8]} 47... Rc1+ {[%clk 0:00:04.4]} 48. Kb5 {[%clk
0:00:12.1]} 48... Rd1 {[%clk 0:00:05]} 49. Rh4 {[%clk 0:00:10.4]} 49... Kg5
{[%clk 0:00:04.8]} 50. Re4 {[%clk 0:00:10.5]} 50... Kf5 {[%clk 0:00:05.1]} 51.
Rh4 {[%clk 0:00:09.6]} 51... Rd2 {[%clk 0:00:05.1]} 52. a4 {[%clk 0:00:07.4]}
52... Rb2 {[%clk 0:00:04.8]} 53. Kc4 {[%clk 0:00:07.7]} 53... Rc2+ {[%clk
0:00:04.8]} 54. Kd3 {[%clk 0:00:08]} 54... Rg2 {[%clk 0:00:05.1]} 55. Rh3 {[%clk
0:00:07.8]} 55... Rg1 {[%clk 0:00:04.5]} 56. h6 {[%clk 0:00:08.1]} 56... gxh6
{[%clk 0:00:04.7]} 57. Rxh6 {[%clk 0:00:09]} 57... Rg3+ {[%clk 0:00:05.3]} 58.
Kc4 {[%clk 0:00:09.1]} 58... Rg1 {[%clk 0:00:05.5]} 59. Rf6+ {[%clk 0:00:07.9]}
59... Ke4 {[%clk 0:00:05.2]} 60. Rxe6 {[%clk 0:00:08.4]} 60... Rc1+ {[%clk
0:00:06.1]} 61. Kb4 {[%clk 0:00:08.5]} 61... Kxd4 {[%clk 0:00:06.7]} 62. Rd6+
{[%clk 0:00:07.7]} 62... Kxe5 {[%clk 0:00:06.6]} 63. Rd2 {[%clk 0:00:08]} 63...
Rc5 {[%clk 0:00:06.6]} 64. Rd3 {[%clk 0:00:07.3]} 64... Ke6 {[%clk 0:00:05.9]}
65. Ka3 {[%clk 0:00:07.4]} 65... Ke5 {[%clk 0:00:05.8]} 66. b4 {[%clk
0:00:07.9]} 66... Rc1 {[%clk 0:00:05.8]} 67. Kb3 {[%clk 0:00:08.3]} 67... Rc7
{[%clk 0:00:05.5]} 68. Rd2 {[%clk 0:00:06.9]} 68... Ke4 {[%clk 0:00:04.6]} 69.
Rd1 {[%clk 0:00:07.3]} 69... Rg7 {[%clk 0:00:04.6]} 70. Kc4 {[%clk 0:00:06.4]}
70... a6 {[%clk 0:00:03.9]} 71. Re1+ {[%clk 0:00:05.5]} 71... Kf3 {[%clk
0:00:04.5]} 72. Kd5 {[%clk 0:00:05.8]} 72... Rg4 {[%clk 0:00:04.7]} 73. Rb1
{[%clk 0:00:05.3]} 73... Ke3 {[%clk 0:00:04.2]} 74. Kc6 {[%clk 0:00:05.6]} 74...
a5 {[%clk 0:00:04.6]} 75. b5 {[%clk 0:00:03]} 75... Rb4 {[%clk 0:00:02.9]} 76.
Re1+ {[%clk 0:00:02.3]} 76... Kd2 {[%clk 0:00:03]} 77. Ra1 {[%clk 0:00:03.1]}
77... Rc4+ {[%clk 0:00:02.4]} 78. Kxb6 {[%clk 0:00:03.4]} 78... Kc3 {[%clk
0:00:03.3]} 79. Kxa5 {[%clk 0:00:03.8]} 79... Kb3 {[%clk 0:00:03.9]} 80. Rb1+
{[%clk 0:00:04.1]} 80... Ka2 {[%clk 0:00:04]} 81. Rb4 {[%clk 0:00:03.7]} 81...
Rc8 {[%clk 0:00:03.3]} 82. b6 {[%clk 0:00:04.2]} 82... Ka3 {[%clk 0:00:04.2]}
83. Rh4 {[%clk 0:00:03.3]} 83... Ra8+ {[%clk 0:00:04.3]} 84. Kb5 {[%clk
0:00:03.8]} 84... Rf8 {[%clk 0:00:04.8]} 85. Rh3+ {[%clk 0:00:03.8]} 85... Rf3
{[%clk 0:00:05.2]} 86. Rxf3+ {[%clk 0:00:03.7]} 1-0